Cogmind - Beta 10.2 @@@ ROGUE MODE // 2021.07.15 @ 07:30:40 Player: sentrybuster Result: Destroyed by H-88 Terminator with KE Penetrator Performance ------------- Evolutions (9) 4500 Regions Visited (20) 4000 Robots Destroyed (266) 1330 Value Destroyed (13889) 13889 Prototype IDs (51) 1020 Alien Tech Used (2) 400 Bonus (6571) 6571 TOTAL SCORE: 31710 Bonus ------- High Alert Combat Kills 1194 Follower Combat Kills 597 Met Zhirov 300 Hacked Protovariant 500 Acquired SGEMP 2000 Delivered SGEMP 2000 Friendly Fire -20 Cogmind --------- Core Integrity 0/1600 Matter 217/300 Energy 98/100 System Corruption 1% Temperature Cool (0) Movement Core (50) Location -1/Access Parts ------- > --- POWER (2) -------- (None) > --- PROPULSION (5) --- (None) > --- UTILITY (14) ----- Advanced Visual Processing Unit Advanced Target Analyzer Advanced Target Analyzer Improved Core Analyzer > --- WEAPON (4) ------- (None) > --- INVENTORY (4) ---- Quantum Reactor Advanced Remote Datajack Force Lance Peak State ------------ > --- POWER ------------ Graviton Reactor > --- PROPULSION ------- Biometal Medium Treads Armored Heavy Treads Advanced Myomer Leg High-density Centrium Leg > --- UTILITY ---------- Large Storage Unit High-capacity Storage Unit Advanced Energy Well Improved Matter Compressor Advanced Visual Processing Unit Advanced Terrain Scan Processor Advanced Targeting Computer Experimental Targeting Computer Advanced Core Analyzer Experimental ECM Suite Centrium Medium Armor Plating > --- WEAPON ----------- Enhanced Gamma Rifle Advanced Variable Charge Gun Compact Linear Accelerator Molecular Scythe > --- INVENTORY -------- Light Antimatter Reactor Improved Quantum Reactor High-density Centrium Leg Advanced Terrain Scanner Advanced Component Analysis Suite Transdimensional Reconstructor Heavy Gauss Cannon Heavy Shock Bomb Launcher Missile Launcher Missile Launcher Enhanced Force Lance Dirty Bomb Trap Dirty Bomb Trap Fire Trap Fire Trap Fire Trap SGEMP Prototype [Rating: 160] Favorites ----------- Power Particle Reactor Engine Improved Ion Engine Power Core Neutrino Core Reactor Particle Reactor Propulsion Light Treads Treads Light Treads Leg Flexi-carbon Leg Wheel Compact Wheel Hover Unit Improved Antigrav System Flight Unit Xenon Bombardment Thruster Utility Large Storage Unit Device Cooling System Storage Large Storage Unit Processor Advanced Terrain Scan Processor Hackware Advanced System Shield Protection Improved Light Armor Plating Weapon Coil Gun Energy Gun Wave Gun Energy Cannon Long-range Proton Cannon Ballistic Gun Coil Gun Ballistic Cannon Compact Linear Accelerator Launcher Shock Bomb Launcher Special Weapon Mining Laser Impact Weapon Hammer Slashing Weapon Molecular Scythe Piercing Weapon Enhanced Force Lance Build | -11 -10 -9 -8 -8 -7 -6 -5 -5 -5 -5 -4 -4 -4 -4 -4 -3 -3 -3 -2 -1 ------- Run | Scr Mat Mat Mat Sto Fac Fac Fac Upp Upp War Pro Fac Upp Upp Zhi Pro Res Tes Res Acc Slots Evolved 18 | . . 2 2 . 2 2 2 . . . . 2 . . . . 2 . 2 2 Power 1 | . . . . . . . . . . . . . . . . . . . 1 . Propulsion 3 | . . . 1 . . 1 . . . . . 1 . . . . . . . . Utility 12 | . . 1 1 . 2 . 2 . . . . 1 . . . . 2 . 1 2 Weapon 2 | . . 1 . . . 1 . . . . . . . . . . . . . . Parts Attached 357 | 9 . 20 12 20 21 9 4 9 14 . 24 43 1 2 13 14 34 39 54 15 Power 31 | 1 . 1 1 1 1 1 . 2 . . 1 3 . . 2 . 2 5 7 3 Engine 6 | 1 . 1 1 1 1 . . 1 . . . . . . . . . . . . Core 3 | . . . . . . 1 . 1 . . . . . . . . . . 1 . Reactor 22 | . . . . . . . . . . . 1 3 . . 2 . 2 5 6 3 Propulsion 90 | 2 . 5 1 6 3 1 . 1 3 . 6 8 . 1 2 3 10 11 22 5 Treads 31 | . . 5 1 6 1 . . . . . . . . . . 1 3 4 10 . Leg 47 | 2 . . . . 2 1 . . 3 . 6 8 . 1 1 2 5 7 9 . Wheel 3 | . . . . . . . . 1 . . . . . . . . 2 . . . Hover 2 | . . . . . . . . . . . . . . . . . . . . 2 Flight 7 | . . . . . . . . . . . . . . . 1 . . . 3 3 Utility 105 | 2 . 3 4 4 7 3 3 4 5 . 6 19 1 . 5 6 7 13 12 1 Device 47 | . . 1 2 4 2 . 1 2 3 . 3 9 1 . . 5 5 9 . . Storage 11 | 2 . 2 2 . . . . . . . . . . . 2 . 1 2 . . Processor 14 | . . . . . 2 . 1 . . . 1 2 . . . . 1 1 5 1 Hackware 2 | . . . . . . . . . . . . . . . . . . . 2 . Protection 31 | . . . . . 3 3 1 2 2 . 2 8 . . 3 1 . 1 5 . Artifact . | . . . . . . . . . . . . . . . . . . . . . Weapon 131 | 4 . 11 6 9 10 4 1 2 6 . 11 13 . 1 4 5 15 10 13 6 Energy Gun 46 | 3 . 5 4 6 4 2 . . 2 . 7 4 . 1 1 2 1 2 2 . Energy Cannon 21 | . . 1 1 2 3 . 1 1 1 . 3 . . . . 1 4 2 1 . Ballistic Gun 23 | . . 1 . . 1 2 . . 1 . 1 7 . . 1 1 3 . 4 1 Ballistic Cannon 13 | . . 2 1 . . . . . . . . 1 . . 1 . 4 2 2 . Launcher 13 | . . . . 1 1 . . 1 2 . . . . . . 1 3 1 3 . Special Weapon 3 | 1 . 1 . . . . . . . . . . . . . . . . . 1 Impact Weapon 1 | . . 1 . . . . . . . . . . . . . . . . . . Slashing Weapon 5 | . . . . . 1 . . . . . . 1 . . 1 . . 2 . . Piercing Weapon 6 | . . . . . . . . . . . . . . . . . . 1 1 4 Special Melee Weapon . | . . . . . . . . . . . . . . . . . . . . . Unidentified Prototypes 34 | . . . 2 3 1 . . . . . . . . . 6 . 1 16 5 . Parts Lost 146 | . . 4 2 3 8 3 . 3 6 . 4 4 1 . . 14 26 15 42 11 Power 14 | . . . . . . . . 1 . . . . . . . . 3 3 5 2 Propulsion 46 | . . 1 . 2 2 . . 1 3 . . . . . . 5 8 3 14 7 Utility 39 | . . . 1 . 2 1 . . 2 . 1 2 1 . . 5 6 3 15 . Weapon 47 | . . 3 1 1 4 2 . 1 1 . 3 2 . . . 4 9 6 8 2 Highest Loss Streak 19 | . . 1 1 1 3 3 . 2 5 . 2 1 1 . . 14 11 13 19 6 Average Slot Usage (%) 87 | . 100 99 99 96 95 91 100 93 90 100 98 95 99 100 81 59 73 79 75 29 Engine 2 | . 14 11 9 9 7 2 . 2 . . . . . . . . . . . . Reactor 2 | . . . . . . . . . . . 3 4 5 5 4 5 3 2 5 2 Treads 9 | . . 19 27 26 17 13 11 7 . . . . . . . 4 6 6 4 . Leg 10 | . 28 2 . . 2 6 11 11 16 23 23 24 26 26 26 6 4 10 10 . Device 9 | . . 11 12 16 11 11 9 9 11 11 14 4 4 5 5 9 14 6 6 . Storage 13 | . 28 22 22 18 15 13 11 11 11 11 11 10 10 10 10 10 11 14 10 . Processor 12 | . . . . . 7 6 11 11 11 11 15 19 21 21 21 15 18 21 22 15 Protection 4 | . . . . . 9 8 12 12 9 11 3 8 10 10 9 . . 1 1 . Energy Gun 7 | . 28 18 17 12 10 16 5 . 6 5 13 6 5 5 . 3 1 3 . . Energy Cannon 2 | . . 3 1 11 5 . 4 3 4 5 1 . . . . 1 3 . 1 . Ballistic Gun 3 | . . 2 2 . 3 7 11 11 4 5 3 11 10 10 . . 2 1 2 . Ballistic Cannon 1 | . . 6 4 . . . . . . . . 1 5 5 . . 2 3 1 . Naked Turns . | . . . . . . . . . . . . . . . . . . . . . Heaviest Build 122 | 17 17 54 73 75 79 82 90 89 93 93 93 108 108 108 106 107 122 114 115 26 Greatest Support 160 | 20 20 40 60 60 60 40 35 35 65 65 85 110 110 115 115 115 135 95 160 43 Greatest Overweight (x) 5 | 3 . 2 1 1 5 2 2 5 5 1 1 1 . . . 3 3 3 2 1 Average Overweight (x) . | . . . . 1 1 1 2 3 1 1 . . . . . 2 . . . . Largest Inventory Capacity 24 | 8 8 14 18 18 18 18 18 18 18 18 18 18 18 18 18 18 18 24 10 4 Average Capacity 15 | 7 8 11 17 18 18 18 18 18 18 18 18 18 18 18 18 18 18 16 9 4 Most Carried 18 | 8 8 14 18 18 18 18 16 18 18 18 18 18 18 18 18 18 18 18 10 4 Average Carried 14 | 6 7 9 14 17 17 17 13 15 17 18 17 17 17 17 17 15 17 15 9 3 Final Capacity 18 | 8 8 14 18 18 18 18 18 18 18 18 18 18 18 18 18 18 18 10 4 4 Final Carried 18 | 8 8 14 18 18 18 17 13 18 18 18 18 18 17 18 18 18 16 10 4 3 Class Distribution -------------------- 26% | Scavenger-Mutant 26% | Mutant 11% | Gunner 11% | Scavenger-Skirmisher 8% | Scavenger-Gunner 7% | Scavenger-Tank 4% | Skirmisher Dominant Class ---------------- Mutant | -10/Materials Gunner | -9/Materials Gunner | -8/Materials Gunner | -8/Storage Scavenger-Gunner | -7/Factory Scavenger-Skirmisher | -6/Factory Scavenger-Skirmisher | -5/Factory Scavenger-Mutant | -5/Upper Caves Scavenger-Mutant | -5/Upper Caves Scavenger-Mutant | -5/Warlord Scavenger-Skirmisher | -4/Proximity Caves Scavenger-Skirmisher | -4/Factory Scavenger-Mutant | -4/Upper Caves Scavenger-Mutant | -4/Upper Caves Scavenger-Assassin | -4/Zhirov Mutant | -3/Proximity Caves Mutant | -3/Research Mutant | -3/Testing Mutant | -2/Research Scavenger-Sprinter | -1/Access Resources | -11 -10 -9 -8 -8 -7 -6 -5 -5 -5 -5 -4 -4 -4 -4 -4 -3 -3 -3 -2 -1 ----------- Run | Scr Mat Mat Mat Sto Fac Fac Fac Upp Upp War Pro Fac Upp Upp Zhi Pro Res Tes Res Acc Matter Collected 7464 | 290 . 569 197 215 189 98 179 206 247 . 264 995 57 104 543 290 856 972 1046 147 Remotely 95 | . . . . . . . . . . . . . . . . 32 63 . . . Salvage Created 14078 | 133 149 911 477 1269 580 104 260 292 583 . 1086 968 . . 360 333 1997 1217 3260 99 Parts 672 | 10 8 73 32 63 25 4 3 12 14 . 35 55 . . 3 9 96 49 175 6 Haulers Intercepted 5 | . . 2 1 2 . . . . . . . . . . . . . . . . Recyclers Shooed 20 | 1 . 1 1 1 3 . 2 . . . . 1 . . . . 7 2 1 . Parts Field Recycled . | . . . . . . . . . . . . . . . . . . . . . Retrieved Matter . | . . . . . . . . . . . . . . . . . . . . . Parts Self-Destructed 34 | . . . . . . . . 7 6 . 11 . . . 2 8 . . . . Prevented 32 | . . . . . . . . 1 8 . 23 . . . . . . . . . Kills | -11 -10 -9 -8 -8 -7 -6 -5 -5 -5 -5 -4 -4 -4 -4 -4 -3 -3 -3 -2 -1 ------- Run | Scr Mat Mat Mat Sto Fac Fac Fac Upp Upp War Pro Fac Upp Upp Zhi Pro Res Tes Res Acc Combat Hostiles Destroyed 215 | . 2 19 15 19 10 2 . 7 10 . 14 14 . . . 6 37 17 41 2 Melee 32 | . . . . . . . . . . . . . . . . . . 9 21 2 Guns 71 | . 2 11 13 8 5 2 . 1 1 . 4 12 . . . . 6 . 6 . Cannons 63 | . . 7 2 7 4 . . 1 2 . 1 1 . . . 2 25 5 6 . AOE 34 | . . 1 . 4 . . . 5 4 . 4 . . . . 4 6 1 5 . Classes Destroyed 21 | 2 1 8 . 2 1 1 . 1 . . 1 . . . . 1 . 2 1 . Worker 9 | . . 2 1 . 1 . . . . . . . . . . . 4 . 1 . Builder 8 | . . . . 3 . . . . . . . 2 . . . . 3 . . . Tunneler 4 | 3 . . . . . . . . . . . . . . . . . . . 1 Hauler 5 | . . 2 1 2 . . . . . . . . . . . . . . . . Recycler 8 | 1 1 . . . . . 2 . . . . 1 . . . . 1 1 1 . Minesweeper 2 | . . . . . . . . . . . . . . . . 2 . . . . Mechanic 3 | . . 1 . 1 . . . . . . . . . . . . . . 1 . Operator 2 | . . 1 1 . . . . . . . . . . . . . . . . . Watcher 10 | . . 4 . . 1 1 . . . . . 1 . . . . . . 3 . Swarmer 25 | . . 4 8 . . . . 4 . . 1 4 . . . . . . 2 2 Saboteur 1 | . . . . . . . . . . . 1 . . . . . . . . . Grunt 83 | . 2 11 4 9 5 . . 2 9 . 6 . . . . 4 18 3 10 . Brawler 3 | . . 1 . . . . . . . . 2 . . . . . . . . . Duelist 6 | . . . . 1 1 . . 1 . . 2 . . . . . . . 1 . Protector 1 | . . . . . . . . . . . . . . . . . . . 1 . Sentry 31 | . . 3 3 9 2 . . . . . 1 4 . . . . 4 . 5 . Hunter 25 | . . . . . . 2 . . 1 . . 2 . . . 2 8 2 8 . Programmer 36 | . . . . . 2 . . . . . 1 4 . . . . 7 8 14 . Striker 2 | . . . . . . . . . . . . . . . . . . 2 . . Alpha 7 1 | . . . . . . . . . . . . . . . . . . 1 . . Protovariant L 1 | . . . . . . . . . . . . . . . . . . 1 . . Samaritan 1 | . . . . . . . . 1 . . . . . . . . . . . . Best Kill Streak 10 | 2 3 5 5 7 4 1 2 4 5 . 9 5 . . . 5 10 7 5 2 Combat Bots Only 9 | . 2 3 5 3 3 1 . 4 5 . 9 5 . . . 5 9 7 5 2 Max Kills in Single Turn 4 | 1 1 2 2 3 1 1 1 3 2 . 2 2 . . . 2 3 1 4 1 Gunslinging 1 | . . . 1 . . . . . . . . 1 . . . . . . . . Exploded 4 | . . 1 . 2 . . . 3 2 . 1 . . . . 2 2 1 4 . Melee 1 | . . . . . . . . . . . . . . . . . . 1 1 1 Uniques/NPCs Destroyed . | . . . . . . . . . . . . . . . . . . . . . Combat | -11 -10 -9 -8 -8 -7 -6 -5 -5 -5 -5 -4 -4 -4 -4 -4 -3 -3 -3 -2 -1 -------- Run | Scr Mat Mat Mat Sto Fac Fac Fac Upp Upp War Pro Fac Upp Upp Zhi Pro Res Tes Res Acc Damage Taken 31670 | . 11 830 612 693 1100 890 . 465 707 . 542 1714 91 . . 2094 5243 3943 10234 2501 Core 4790 | . . 105 43 18 141 126 . . 84 . . 185 33 . . 188 597 416 1242 1612 Absorbed by Shields 3387 | . . . 102 . . . . . . . . . . . . 106 731 . 2448 . Reduced by Siege Mode 248 | . . . . . . . . . . . . . . . . . 248 . . . Core Remaining (%) 71 | 100 100 73 . 88 79 85 . . . . 91 . . . . 64 . 19 14 . Volleys Fired 643 | 21 4 70 50 41 39 13 4 26 23 . 34 56 5 9 . 33 104 35 69 7 Largest 4 | 2 2 3 3 3 3 4 3 2 2 . 4 4 1 1 . 3 4 3 3 1 Hottest 335 | 100 90 164 176 204 197 238 136 81 162 . 254 251 61 94 . 220 335 240 170 50 Shots Fired 1321 | 33 8 183 131 99 93 45 12 31 35 . 63 148 6 8 . 44 220 42 113 7 Gun 788 | 24 8 98 106 49 59 45 8 10 22 . 42 144 5 6 . 20 59 14 63 6 Cannon 461 | . . 82 25 44 32 . 4 14 4 . 12 4 1 2 . 20 147 23 47 . Launcher 59 | . . . . 6 2 . . 7 9 . 9 . . . . 4 14 5 3 . Special 13 | 9 . 3 . . . . . . . . . . . . . . . . . 1 Kinetic 534 | . . 56 28 . 17 13 8 10 19 . 11 111 6 2 . 18 128 22 79 6 Thermal 523 | 21 4 86 99 83 59 19 . . 3 . 27 11 . 6 . 18 78 9 . . Explosive 30 | . . . . . . . . 7 2 . . . . . . 4 14 . 3 . Electromagnetic 233 | 12 4 41 4 16 17 13 4 14 11 . 25 26 . . . 4 . 11 31 . Robot Hit Streak 25 | 3 9 10 13 16 15 15 6 6 7 . 8 23 . 5 . 7 23 16 25 3 Robot Miss Streak 6 | 3 1 4 5 3 5 4 1 5 3 . 6 6 . 1 . 2 2 2 4 2 Penetration Max 1 | . . . . . . . . . . . . 1 . . . . 1 . 1 1 Secondary Targets 9 | . . . 2 . 1 . . . . . . 4 . . . . . . 2 . Max Gunslinging Chain 1 | . . . 1 . 1 . . . . . . 1 . . . . . . 1 . Shots Hit Robots 1022 | 10 7 110 102 68 75 41 9 18 24 . 36 97 . 2 4 32 150 81 149 7 Core Hits 621 | 5 6 51 49 44 43 16 6 15 28 . 33 43 . 1 3 19 111 38 105 5 Critical Hits 48 | . . 2 . 5 3 . . . . . 1 1 . . 1 . 10 8 17 . Critical Kills 24 | . . 1 . 3 1 . . . . . 1 1 . . . . 6 2 9 . Critical Parts Destroyed 19 | . . 1 . 2 2 . . . . . . . . . . . 3 4 7 . Melee Attacks 195 | . . 3 . . 1 . . . . . . 2 . . 4 . . 70 96 19 Impact 3 | . . 3 . . . . . . . . . . . . . . . . . . Slashing 67 | . . . . . 1 . . . . . . 2 . . 4 . . 60 . . Piercing 125 | . . . . . . . . . . . . . . . . . . 10 96 19 Sneak Attacks 2 | . . . . . . . . . . . . . . . . . . 2 . . Combat Hostiles . | . . . . . . . . . . . . . . . . . . . . . Follow-up Attacks . | . . . . . . . . . . . . . . . . . . . . . Damage Inflicted 34731 | 132 104 1617 1415 2228 1327 428 271 1280 1201 . 1648 2108 . 58 545 1163 7270 4136 7603 197 Guns 10630 | 132 104 813 1227 675 797 377 161 78 301 . 584 1943 . 58 . 336 1207 357 1377 103 Cannons 9369 | . . 662 145 589 479 . 110 315 142 . 147 165 . . . 327 3985 978 1325 . Explosions 8719 | . . 142 36 964 38 41 . 887 758 . 917 . . . . 500 1995 256 2185 . Melee 5880 | . . . . . . . . . . . . . . . 545 . . 2534 2707 94 Ramming 133 | . . . 7 . 13 10 . . . . . . . . . . 83 11 9 . Kinetic 9455 | . . 462 167 . 270 103 161 78 301 . 184 1662 . . . 305 2842 978 1839 103 Thermal 8697 | 102 49 833 1175 1621 841 239 . . . . 415 73 . 58 . 307 2350 276 358 . Explosive 5504 | . . . . . . . . 887 295 . . . . . . 500 1995 . 1827 . Electromagnetic 5062 | 30 55 322 66 607 203 76 110 315 605 . 1049 373 . . . 51 . 337 863 . Impact . | . . . . . . . . . . . . . . . . . . . . . Slashing 3042 | . . . . . . . . . . . . . . . 545 . . 2497 . . Piercing 2838 | . . . . . . . . . . . . . . . . . . 37 2707 94 Highest Corruption 42 | . . 2 . . . . . . . . 1 9 9 9 9 9 5 27 42 1 Average Corruption 8 | . . 2 . . . . . . . . 1 5 9 9 9 9 3 12 13 1 Corruption Purged . | . . . . . . . . . . . . . . . . . . . . . Effects 305 | . . 13 . . . . . . . . . 16 12 11 10 32 26 66 118 1 Message Errors 59 | . . 2 . . . . . . . . . 1 1 6 3 8 4 19 14 1 Matter Fused 46 | . . . . . . . . . . . . 6 6 . 2 6 4 8 14 . Heat Flow Errors 22 | . . 1 . . . . . . . . . 2 . 2 2 4 . 4 7 . Energy Discharges 31 | . . 4 . . . . . . . . . . 1 1 1 4 5 5 10 . Parts Rejected 7 | . . . . . . . . . . . . . . . . 2 1 . 4 . Data Loss (minor) 28 | . . 2 . . . . . . . . . 1 2 1 2 3 3 6 8 . Data Loss (major) 10 | . . . . . . . . . . . . . 1 . . 1 1 2 5 . Misfires 3 | . . . . . . . . . . . . . 1 . . . . 1 1 . Alerts 1 | . . . . . . . . . . . . . . . . . . . 1 . Misdirections 31 | . . . . . . . . . . . . . . . . . . 6 25 . Targeting Errors 58 | . . 4 . . . . . . . . . 4 . . . 4 7 13 26 . Weapon Failures 9 | . . . . . . . . . . . . 2 . 1 . . 1 2 3 . Overload Shots 1 | . . . . . . . . . . . . . . . . . . 1 . . Overflow Damage 992 | . . . . 37 1 . 12 107 . . 97 20 . . 120 5 269 264 60 . Projectiles 338 | . . . . 10 1 . 12 63 . . 44 20 . . . . 133 43 12 . Explosions 284 | . . . . 27 . . . 44 . . 53 . . . . 5 136 . 19 . Melee 370 | . . . . . . . . . . . . . . . 120 . . 221 29 . Knockbacks 46 | . . 8 . . . . . . . . . 2 . . . 4 25 3 4 . Impact 1 | . . . . . . . . . . . . . . . . . 1 . . . Kinetic 40 | . . 7 . . . . . . . . . 2 . . . 4 20 3 4 . Secondary 5 | . . 1 . . . . . . . . . . . . . . 4 . . . Self-Inflicted Damage 646 | . . 9 40 99 49 . . 104 5 . 5 . . . . 34 84 . 217 . Shots 19 | . . 1 1 2 2 . . 2 1 . 1 . . . . 2 3 . 4 . Rammed 25 | . . 1 1 . 5 . . . . . . . . . . . 14 2 2 . Targets Rammed 26 | . . 1 1 . 5 1 . . . . . . . . . . 14 2 2 . Kicked . | . . . . . . . . . . . . . . . . . . . . . Crushed 1 | . . . . . . 1 . . . . . . . . . . . . . . Highest Temperature 448 | 120 96 144 365 313 174 276 . . 86 . 259 400 . 237 184 436 147 297 448 16 Average Temperature 91 | 47 43 32 72 93 38 112 . . 47 . 105 114 . 93 88 168 48 123 125 16 Received Heat Transfer 3254 | . 6 252 120 243 435 . . 90 234 . 81 72 . . . 129 718 153 550 171 Effects 8 | . . . 4 . . . . . . . . 1 . . . 1 . . 2 . Shutdowns 4 | . . . 1 . . . . . . . . . . . . 1 . . 2 . Energy Bleed 1 | . . . . . . . . . . . . 1 . . . . . . . . Interference 3 | . . . 3 . . . . . . . . . . . . . . . . . Siege Activations 6 | . . . . . . . . . . . . . . . . . 6 . . . Total Turns 117 | . . . . . . . . . . . . . . . . . 117 . . . Longest Duration 44 | . . . . . . . . . . . . . . . . . 44 . . . Robots Corrupted 17 | . . . . . . . . 2 3 . 6 1 . . . . . 2 3 . Combat Hostiles 16 | . . . . . . . . 1 3 . 6 1 . . . . . 2 3 . Parts Fried 31 | . . . . 2 1 . . 2 8 . 5 2 . . . . . 6 5 . Impact Corruptions . | . . . . . . . . . . . . . . . . . . . . . Robots Melted 1 | . . . . . 1 . . . . . . . . . . . . . . . Combat Hostiles 1 | . . . . . 1 . . . . . . . . . . . . . . . Parts Melted 19 | . . 4 1 5 1 3 . . . . 2 . . . . . 3 . . . Heat Transferred 12034 | 296 148 1676 2057 2603 1390 475 . . . . 459 137 . 74 . 370 1753 346 250 . Parts Sabotaged . | . . . . . . . . . . . . . . . . . . . . . Parts Stolen . | . . . . . . . . . . . . . . . . . . . . . Parts Stripped . | . . . . . . . . . . . . . . . . . . . . . Power Chain Reactions 16 | . . 2 1 8 . 1 . . . . 1 . . . . . . 1 2 . Missiles Intercepted . | . . . . . . . . . . . . . . . . . . . . . Alert | -11 -10 -9 -8 -8 -7 -6 -5 -5 -5 -5 -4 -4 -4 -4 -4 -3 -3 -3 -2 -1 ------- Run | Scr Mat Mat Mat Sto Fac Fac Fac Upp Upp War Pro Fac Upp Upp Zhi Pro Res Tes Res Acc Peak Influence 1208 | 20 58 288 321 466 248 160 10 . . . . 318 . . . . 710 493 1208 1035 Initial 704 | . 13 24 99 86 180 84 . . . . . . . . . . . 353 174 704 Average 279 | 11 32 136 216 305 154 82 6 . . . . 130 . . . . 271 345 561 897 Maximum Alert Level 4 | . . 1 1 2 1 . . . . . . 1 . . . . 3 2 4 3 Low Security (%) 46 | 100 100 72 29 23 93 100 100 . . . . 70 . . . . 48 . 13 . Level 1 34 | . . 27 70 52 6 . . . . . . 29 . . . . 14 90 34 . Level 2 8 | . . . . 24 . . . . . . . . . . . . 30 9 16 . Level 3 7 | . . . . . . . . . . . . . . . . . 6 . 27 100 Level 4 1 | . . . . . . . . . . . . . . . . . . . 7 . Level 5 . | . . . . . . . . . . . . . . . . . . . . . High Security . | . . . . . . . . . . . . . . . . . . . . . Max Security . | . . . . . . . . . . . . . . . . . . . . . Squads Dispatched 48 | . . 3 2 3 5 1 . . . . 1 3 . . . . 6 4 17 3 Investigation 4 | . . 2 1 . . . . . . . . . . . . . . . . 1 Extermination 13 | . . . . . 1 . . . . . . 2 . . . . 2 2 6 . Reinforcement 13 | . . 1 1 1 1 1 . . . . . . . . . . 3 1 4 . Assault 9 | . . . . 2 . . . . . . 1 . . . . . 1 1 3 1 Garrison 9 | . . . . . 3 . . . . . . 1 . . . . . . 4 1 Intercept . | . . . . . . . . . . . . . . . . . . . . . Construction Impeded 6 | . . . . 1 . . . . . . . . . . . . 3 . 2 . Haulers Reinforced 1 | . . . . . . . . . . . . . . . . . . . 1 . Stealth | -11 -10 -9 -8 -8 -7 -6 -5 -5 -5 -5 -4 -4 -4 -4 -4 -3 -3 -3 -2 -1 --------- Run | Scr Mat Mat Mat Sto Fac Fac Fac Upp Upp War Pro Fac Upp Upp Zhi Pro Res Tes Res Acc Distress Signals 12 | . . 1 3 1 . . . . . . . 2 . . . . 3 . 2 . Communications Jammed . | . . . . . . . . . . . . . . . . . . . . . Distress Signals . | . . . . . . . . . . . . . . . . . . . . . Times Spotted 371 | . 3 30 28 32 14 4 . 11 10 . 18 27 1 . . 6 61 22 82 22 Peak Tracking Total 12 | . 2 4 7 9 3 2 . 4 5 . 12 6 1 . . 6 8 10 10 8 Tactical Retreats 31 | . . 2 1 . . . . 4 1 . 3 2 1 . . . 3 1 10 3 Traps | -11 -10 -9 -8 -8 -7 -6 -5 -5 -5 -5 -4 -4 -4 -4 -4 -3 -3 -3 -2 -1 ------- Run | Scr Mat Mat Mat Sto Fac Fac Fac Upp Upp War Pro Fac Upp Upp Zhi Pro Res Tes Res Acc Traps Triggered 12 | . . 3 1 . . . . . . . . 5 . . . . . . 3 . Indirectly . | . . . . . . . . . . . . . . . . . . . . . Trap Hack Attempts . | . . . . . . . . . . . . . . . . . . . . . Triggered . | . . . . . . . . . . . . . . . . . . . . . Disarmed . | . . . . . . . . . . . . . . . . . . . . . Reprogrammed . | . . . . . . . . . . . . . . . . . . . . . Reused 1 | . . . . . . . . . . . . . . . . . 1 . . . Traps Extracted . | . . . . . . . . . . . . . . . . . . . . . Installed 4 | . . . . . . . . . . . . . . . . 2 1 . 1 . Triggered 5 | . . . . . . . . . 1 . . . . 3 . . 1 . . . Machines | -11 -10 -9 -8 -8 -7 -6 -5 -5 -5 -5 -4 -4 -4 -4 -4 -3 -3 -3 -2 -1 ---------- Run | Scr Mat Mat Mat Sto Fac Fac Fac Upp Upp War Pro Fac Upp Upp Zhi Pro Res Tes Res Acc Machines Disabled 20 | . . 2 . 4 3 . . . . . . 3 . . . . 1 3 2 2 Max in Single Turn 2 | . . 1 . 1 2 . . . . . . 1 . . . . 1 1 1 . Garrison Access 3 | . . . . . . . . . . . . . . . . . 1 . 2 . Machines Sabotaged . | . . . . . . . . . . . . . . . . . . . . . Garrisons Compromised . | . . . . . . . . . . . . . . . . . . . . . Overloaded Fab Kills . | . . . . . . . . . . . . . . . . . . . . . Fab Network Shutdowns . | . . . . . . . . . . . . . . . . . . . . . Hacking | -11 -10 -9 -8 -8 -7 -6 -5 -5 -5 -5 -4 -4 -4 -4 -4 -3 -3 -3 -2 -1 --------- Run | Scr Mat Mat Mat Sto Fac Fac Fac Upp Upp War Pro Fac Upp Upp Zhi Pro Res Tes Res Acc Machines Accessed 55 | . . 7 8 8 4 2 . 1 . . . 5 1 1 4 . 2 6 4 2 Terminals 34 | . . 5 5 6 3 1 . 1 . . . 3 . . . . 2 4 2 2 Fabricators . | . . . . . . . . . . . . . . . . . . . . . Repair Stations 3 | . . 1 . 1 . . . . . . . . . . . . . 1 . . Recycling Units 6 | . . 1 1 1 . 1 . . . . . 1 . . . . . . 1 . Scanalyzers 3 | . . . 2 . . . . . . . . . . . . . . 1 . . Garrison Access 3 | . . . . . 1 . . . . . . 1 . . . . . . 1 . Total Hacks 152 | . . 28 20 20 9 5 . 1 . . . 14 1 1 17 . 2 19 11 4 Successful 80 | . . 21 11 10 4 2 . 1 . . . 3 1 1 17 . . 5 3 1 Failed 72 | . . 7 9 10 5 3 . . . . . 11 . . . . 2 14 8 3 Catastrophic 13 | . . . . 1 1 2 . . . . . 3 . . . . 2 2 2 . Database Lockouts . | . . . . . . . . . . . . . . . . . . . . . Manual 71 | . . 15 13 9 4 1 . . . . . 10 . . . . 1 14 4 . Terminals 98 | . . 17 15 16 7 3 . 1 . . . 9 . . . . 2 16 8 4 Fabricators . | . . . . . . . . . . . . . . . . . . . . . Repair Stations 14 | . . 9 . 3 . . . . . . . . . . . . . 2 . . Recycling Units 11 | . . 2 2 1 . 2 . . . . . 3 . . . . . . 1 . Scanalyzers 4 | . . . 3 . . . . . . . . . . . . . . 1 . . Garrison Access 6 | . . . . . 2 . . . . . . 2 . . . . . . 2 . Terminal Hacks 44 | . . 5 3 5 3 2 . 1 . . . 1 1 1 17 . . 3 1 1 Record 6 | . . . . . . . . 1 . . . . . . 5 . . . . . Part Schematic 4 | . . . . . . . . . . . . . . . 4 . . . . . Robot Analysis 5 | . . . 1 . . . . . . . . . . . 4 . . . . . Prototype ID Bank 5 | . . . . 1 . . . . . . . . . . 4 . . . . . Open Door 3 | . . . . 1 . . . . . . . . 1 1 . . . . . . Branch Access Points 2 | . . . . . 1 . . . . . . . . . . . . . 1 . Terminal Index 4 | . . 1 1 1 . . . . . . . 1 . . . . . . . . Alert Level 6 | . . . 1 1 1 1 . . . . . . . . . . . 1 . 1 Unreport Threat 1 | . . . . 1 . . . . . . . . . . . . . . . . Maintenance Status 2 | . . 1 . . . . . . . . . . . . . . . 1 . . Transport Status 1 | . . 1 . . . . . . . . . . . . . . . . . . Hauler Manifests 2 | . . 1 . . . 1 . . . . . . . . . . . . . . Zone Layout 2 | . . 1 . . 1 . . . . . . . . . . . . . . . Protovariant Controls 1 | . . . . . . . . . . . . . . . . . . 1 . . Fabricator Hacks . | . . . . . . . . . . . . . . . . . . . . . Repair Station Hacks 10 | . . 8 . 2 . . . . . . . . . . . . . . . . Scan Component 5 | . . 4 . 1 . . . . . . . . . . . . . . . . Repair 5 | . . 4 . 1 . . . . . . . . . . . . . . . . Recycling Unit Hacks 3 | . . 1 1 1 . . . . . . . . . . . . . . . . Retrieve Components 3 | . . 1 1 1 . . . . . . . . . . . . . . . . Scanalyzer 2 | . . . 2 . . . . . . . . . . . . . . . . . Insert Component 1 | . . . 1 . . . . . . . . . . . . . . . . . Analyze 1 | . . . 1 . . . . . . . . . . . . . . . . . Garrison Access Hacks 1 | . . . . . . . . . . . . . . . . . . . 1 . Seal Access 1 | . . . . . . . . . . . . . . . . . . . 1 . Unauthorized Hacks 20 | . . 7 5 2 1 . . . . . . 2 . . . . . 2 1 . Terminals 20 | . . 7 5 2 1 . . . . . . 2 . . . . . 2 1 . Track 15 | . . 4 4 2 1 . . . . . . 2 . . . . . 1 1 . Botnet 4 | . . 2 1 . . . . . . . . . . . . . . 1 . . Operators 1 | . . 1 . . . . . . . . . . . . . . . . . . Fabricators . | . . . . . . . . . . . . . . . . . . . . . Repair Stations . | . . . . . . . . . . . . . . . . . . . . . Recycling Units . | . . . . . . . . . . . . . . . . . . . . . Scanalyzers . | . . . . . . . . . . . . . . . . . . . . . Garrison Access . | . . . . . . . . . . . . . . . . . . . . . Data Cores Recovered . | . . . . . . . . . . . . . . . . . . . . . Used . | . . . . . . . . . . . . . . . . . . . . . Hacking Detections 44 | . . 7 7 6 4 1 . . . . . 5 . . . . 2 6 4 2 Full Trace Events 2 | . . . 1 . . . . . . . . . . . . . . . . 1 Feedback Events . | . . . . . . . . . . . . . . . . . . . . . Feedback Blocked . | . . . . . . . . . . . . . . . . . . . . . Robot Schematics Acquired . | . . . . . . . . . . . . . . . . . . . . . Robots Built . | . . . . . . . . . . . . . . . . . . . . . Matter . | . . . . . . . . . . . . . . . . . . . . . Time . | . . . . . . . . . . . . . . . . . . . . . Total Robot Build Rating . | . . . . . . . . . . . . . . . . . . . . . Part Schematics Acquired 5 | . . . 1 . . . . . . . . . . . 4 . . . . . Parts Built . | . . . . . . . . . . . . . . . . . . . . . Matter . | . . . . . . . . . . . . . . . . . . . . . Time . | . . . . . . . . . . . . . . . . . . . . . Total Part Build Rating . | . . . . . . . . . . . . . . . . . . . . . Parts Repaired 5 | . . 4 . 1 . . . . . . . . . . . . . . . . Time 148 | . . 116 . 32 . . . . . . . . . . . . . . . . Parts Recycled . | . . . . . . . . . . . . . . . . . . . . . Recycled Matter . | . . . . . . . . . . . . . . . . . . . . . Retrieved Matter . | . . . . . . . . . . . . . . . . . . . . . Retrieved Components 13 | . . 3 1 9 . . . . . . . . . . . . . . . . Parts Scanalyzed 1 | . . . 1 . . . . . . . . . . . . . . . . . Part Schematics Acquired 1 | . . . 1 . . . . . . . . . . . . . . . . . Parts Damaged . | . . . . . . . . . . . . . . . . . . . . . Bothacking | -11 -10 -9 -8 -8 -7 -6 -5 -5 -5 -5 -4 -4 -4 -4 -4 -3 -3 -3 -2 -1 ------------ Run | Scr Mat Mat Mat Sto Fac Fac Fac Upp Upp War Pro Fac Upp Upp Zhi Pro Res Tes Res Acc Used RIF Installer . | . . . . . . . . . . . . . . . . . . . . . Robots Hacked 1 | . . . . . . . . . . . . . . . . . . . . 1 Non-combat . | . . . . . . . . . . . . . . . . . . . . . Combat 1 | . . . . . . . . . . . . . . . . . . . . 1 Robot Hacks Applied 1 | . . . . . . . . . . . . . . . . . . . . 1 parse_system 1 | . . . . . . . . . . . . . . . . . . . . 1 Relay Couplers Released 3 | . . . . . . . . . . . . . . . . . 3 . . . Machine Destruction 3 | . . . . . . . . . . . . . . . . . 3 . . . Robots Rewired 2 | . . . . . . . . . . . 2 . . . . . . . . . Allies Hacked . | . . . . . . . . . . . . . . . . . . . . . Hacks Repelled . | . . . . . . . . . . . . . . . . . . . . . Allies | -11 -10 -9 -8 -8 -7 -6 -5 -5 -5 -5 -4 -4 -4 -4 -4 -3 -3 -3 -2 -1 -------- Run | Scr Mat Mat Mat Sto Fac Fac Fac Upp Upp War Pro Fac Upp Upp Zhi Pro Res Tes Res Acc Total Allies 7 | . . . . 2 . . . . . . 2 . . . . . . . . 3 Largest Group 3 | . . . . 2 . . . . . . 2 . . . . . . . . 3 Highest-Rated Group 368 | . . . . 62 . . . . . . 78 . . . . . . . . 368 Highest-Rated Ally 131 | . . . . 31 . . . . . . 48 . . . . . . . . 131 Total Orders 1 | . . . . 1 . . . . . . . . . . . . . . . . EXPLORE 1 | . . . . 1 . . . . . . . . . . . . . . . . Ally Attacks 66 | . . . . 23 . . . . . . 12 . . . . . . . . 31 Total Damage 1968 | . . . . 379 . . . . . . 319 . . . . . . . . 1270 Kills 14 | . . . . 6 . . . . . . 1 . . . . . . . . 7 Allies Corrupted 1 | . . . . . . . . . . . . . . . . . . . . 1 Allies Melted . | . . . . . . . . . . . . . . . . . . . . . Intel | -11 -10 -9 -8 -8 -7 -6 -5 -5 -5 -5 -4 -4 -4 -4 -4 -3 -3 -3 -2 -1 ------- Run | Scr Mat Mat Mat Sto Fac Fac Fac Upp Upp War Pro Fac Upp Upp Zhi Pro Res Tes Res Acc Robot Analysis Total 5 | . . . 1 . . . . . . . . . . . 4 . . . . . Derelict Logs Recovered 6 | . . . . . . . . 1 . . 2 . . 3 . . . . . . Drone Launches 1 | . . . . 1 . . . . . . . . . . . . . . . . Drone Recoveries 1 | . . . . 1 . . . . . . . . . . . . . . . . Exploration | -11 -10 -9 -8 -8 -7 -6 -5 -5 -5 -5 -4 -4 -4 -4 -4 -3 -3 -3 -2 -1 ------------- Run | Scr Mat Mat Mat Sto Fac Fac Fac Upp Upp War Pro Fac Upp Upp Zhi Pro Res Tes Res Acc Turns Passed 15920 | 203 117 1514 950 921 1132 484 225 734 686 54 818 1333 351 361 300 885 1223 1298 2044 287 Spaces Moved 8283 | 90 82 637 414 375 511 223 115 387 370 37 477 736 266 281 215 352 456 591 1314 354 Core 306 | 6 . . . . . . . . . . . . . . . . . . 226 74 Treads 3148 | . . 547 414 375 510 195 . 26 . . . . . . . 347 346 307 81 . Legs 4125 | 84 82 90 . . 1 28 115 124 370 37 477 736 266 281 215 5 110 284 820 . Wheels 237 | . . . . . . . . 237 . . . . . . . . . . . . Hover 35 | . . . . . . . . . . . . . . . . . . . . 35 Flight 432 | . . . . . . . . . . . . . . . . . . . 187 245 Fastest Speed 31 | 50 120 120 160 180 180 180 180 150 150 150 120 120 120 120 120 120 120 120 37 31 Average Speed 145 | 120 120 167 175 180 185 180 180 165 163 150 131 124 120 120 120 218 166 154 109 42 Slowest Speed 270 | 200 120 180 180 180 270 200 180 240 270 150 150 150 120 120 120 220 220 210 200 120 Overloaded Moves . | . . . . . . . . . . . . . . . . . . . . . Propulsion Burnouts . | . . . . . . . . . . . . . . . . . . . . . Robots Hopped 4 | . . . . . . . . . . . . . . . . . . . 2 2 Cave-ins Triggered . | . . . . . . . . . . . . . . . . . . . . . Teleports 1 | . . . . . . . . . . . . . . . . . . 1 . . Exploration Rate (%) 37 | 5 20 45 41 59 19 6 5 49 69 10 66 25 53 55 62 53 19 62 45 11 Regions Visited 20 Branch Regions 10 Pre-discovered Areas 3 | . . . . . . . . . . . . . . . 3 . . . . . Known Exits Taken 3 | . . . . . . . . . . . 1 . . . . 1 1 . . . Unknown Exits Taken 17 | 1 1 1 1 1 1 1 1 1 1 1 . 1 1 1 1 . . 1 1 . Scrap Searched 13 | . . . . . . . . 3 1 . 2 . 2 3 . 2 . . . . Spaces Dug 75 | . . 5 . . 1 . . . . . 4 2 3 5 . . 13 16 16 10 Terrain Destroyed 487 | 2 . 9 4 34 36 5 . 51 24 . 10 13 3 6 . 50 101 24 101 14 Melee 41 | . . 2 . . 1 . . . . . . 2 . . . . . 15 11 10 Projectile 120 | 2 . 3 1 3 . . . 3 . . 5 11 3 6 . 20 48 5 6 4 AOE 326 | . . 4 3 31 35 5 . 48 24 . 5 . . . . 30 53 4 84 . Terrain Rammed . | . . . . . . . . . . . . . . . . . . . . . Walls Destroyed . | . . . . . . . . . . . . . . . . . . . . . Machines Disabled . | . . . . . . . . . . . . . . . . . . . . . Actions | -11 -10 -9 -8 -8 -7 -6 -5 -5 -5 -5 -4 -4 -4 -4 -4 -3 -3 -3 -2 -1 --------- Run | Scr Mat Mat Mat Sto Fac Fac Fac Upp Upp War Pro Fac Upp Upp Zhi Pro Res Tes Res Acc Total 10662 | 130 94 928 539 538 606 271 126 446 416 36 615 1028 293 296 253 425 713 823 1643 443 Wait 827 | . 3 178 46 80 11 18 . 15 1 . 43 157 20 . 1 10 91 49 62 42 Move 8257 | 89 81 636 413 374 510 222 114 386 369 36 476 735 265 280 214 351 456 590 1309 351 Hop 3 | . . . . . . . . . . . . . . . . . . . 2 1 Pick Up 139 | 10 3 11 9 6 11 3 . 7 5 . 6 14 1 2 3 11 9 11 15 2 Fast Attach 197 | 6 . 10 2 13 5 4 1 2 6 . 12 25 . 2 13 2 19 24 43 8 Attach 85 | 1 . 5 5 1 8 3 2 1 2 . 2 9 1 . 1 8 14 8 9 5 Detach 37 | . . 3 2 1 3 1 1 1 . . 2 4 . . 2 1 4 4 3 5 Swap 78 | 2 . 5 5 6 8 2 1 6 6 . 10 9 . . . 4 1 9 2 2 Drop 144 | 1 3 6 6 16 5 4 3 2 4 . 15 17 1 3 15 3 1 21 17 1 Fire 643 | 21 4 70 50 41 39 13 4 26 23 . 34 56 5 9 . 33 104 35 69 7 Melee 195 | . . 3 . . 1 . . . . . . 2 . . 4 . . 70 96 19 Ram . | . . . . . . . . . . . . . . . . . . . . . Kick . | . . . . . . . . . . . . . . . . . . . . . Crush 25 | . . 1 1 . 5 1 . . . . . . . . . . 13 2 2 . Escape Stasis 13 | . . . . . . . . . . . . . . . . . . . 13 . Rewire 15 | . . . . . . . . . . . 15 . . . . . . . . . Trap 4 | . . . . . . . . . . . . . . . . 2 1 . 1 . Miscellaneous . | . . . . . . . . . . . . . . . . . . . . . Route ------- -11/Scrapyard -10/Materials -9/Materials (discovered 2 exits: *Mat x2) -8/Materials -8/Storage -7/Factory (discovered 4 exits: *Fac x2 / Low x2) -6/Factory -5/Factory -5/Upper Caves -5/Upper Caves (discovered 2 exits: *Fac / [*War]) -5/Warlord -4/Proximity Caves -4/Factory (discovered 3 exits: *Res / *Upp / [Arm]) -4/Upper Caves -4/Upper Caves (discovered 2 exits: *Res / *Zhi) -4/Zhirov -3/Proximity Caves -3/Research -3/Testing -2/Research (discovered 3 exits: *Acc / Qua x2) -1/Access (discovered 2 exits: Sur / Com) History --------- Turn | Location | Event 44 | -11/Scrapyard | Discovered new exit (range 13) 204 | -11/Scrapyard | Entered Materials 286 | -10/Materials | Discovered new exit (range 13) 321 | -10/Materials | Build established: Mutant 321 | -10/Materials | Entered another Materials area 321 | -9/Materials | Evolved 2 slots: Utility x1, Weapon x1 510 | -9/Materials | Discovered new exit (range 15) 621 | -9/Materials | Build established: Gunner 1085 | -9/Materials | Repaired EM Pulse Gun 1117 | -9/Materials | Repaired Particle Cannon 1146 | -9/Materials | Repaired Lgt. Treads 1466 | -9/Materials | Discovered new exit (range 12) 1759 | -9/Materials | Repaired Beam Rifle 1835 | -9/Materials | Entered another Materials area 1835 | -8/Materials | Evolved 2 slots: Propulsion x1, Utility x1 2724 | -8/Materials | Discovered new exit (range 6) 2785 | -8/Materials | Entered Storage 2943 | -8/Storage | Met a pair of Derelict thieves 3494 | -8/Storage | Repaired Cooling System 3528 | -8/Storage | Discovered new exit (range 3) 3706 | -8/Storage | Entered Factory 3706 | -7/Factory | Evolved 2 slots: Utility x2 4124 | -7/Factory | Garrison activated, responded to threat 4309 | -7/Factory | Lost 3 parts (1n1u1w) 4662 | -7/Factory | Discovered new exit (range 15) 4792 | -7/Factory | Identified exit to Lower Caves 4792 | -7/Factory | Discovered new exit (range 16) 4838 | -7/Factory | Entered another Factory area 4838 | -6/Factory | Evolved 2 slots: Propulsion x1, Weapon x1 5068 | -6/Factory | Build established: Scavenger-Skirmisher 5244 | -6/Factory | Lost 3 parts (1u2w) 5291 | -6/Factory | Discovered new exit (range 5) 5322 | -6/Factory | Entered another Factory area 5322 | -5/Factory | Evolved 2 slots: Utility x2 5471 | -5/Factory | Discovered new exit (range 24) 5547 | -5/Factory | Entered Upper Caves 6181 | -5/Upper Caves | Build established: Scavenger-Mutant 6234 | -5/Upper Caves | Discovered new exit (range 16) 6242 | -5/Upper Caves | Learned Factory stockpile data 6281 | -5/Upper Caves | Entered another Upper Caves area 6334 | -5/Upper Caves | Discovered new exit (range 12) 6344 | -5/Upper Caves | Lost 5 parts (3n1u1w) 6779 | -5/Upper Caves | Encountered a Warlord checkpoint 6924 | -5/Upper Caves | Discovered new exit (range 8) 6967 | -5/Upper Caves | Entered Warlord 7005 | -5/Warlord | Discovered new exit (range 14) 7021 | -5/Warlord | Entered Proximity Caves 7039 | -4/Proximity Caves | Identified exit to Factory 7053 | -4/Proximity Caves | Learned Research emergency access door positions 7221 | -4/Proximity Caves | Attracted the attention of an 0b10 outpost 7267 | -4/Proximity Caves | Destroyed 9 combat bots 7839 | -4/Proximity Caves | Entered Factory 7839 | -4/Factory | Evolved 2 slots: Propulsion x1, Utility x1 8190 | -4/Factory | Discovered new exit (range 12) 8217 | -4/Factory | Identified exit to Research 8246 | -4/Factory | Spotted B-86 Titan 8738 | -4/Factory | Garrison activated, responded to threat 9111 | -4/Factory | Found Hvy. Insulated Plating 9120 | -4/Factory | Discovered new exit (range 24) 9144 | -4/Factory | Discovered new exit (range 20) 9172 | -4/Factory | Entered Upper Caves 9268 | -4/Upper Caves | Encountered a Warlord checkpoint 9382 | -4/Upper Caves | Spotted B-86 Titan 9499 | -4/Upper Caves | Discovered new exit (range 20) 9523 | -4/Upper Caves | Entered another Upper Caves area 9533 | -4/Upper Caves | Discovered exit to Research (range 14) 9854 | -4/Upper Caves | Learned 8 Research zone layouts 9860 | -4/Upper Caves | Learned location of 1 exit from Research 9878 | -4/Upper Caves | Discovered new exit (range 6) 9884 | -4/Upper Caves | Entered Zhirov 9886 | -4/Zhirov | Discovered new exit (range 3) 9908 | -4/Zhirov | Met Zhirov 9943 | -4/Zhirov | Learned location of Quarantine (-2) 9943 | -4/Zhirov | Learned location of Testing (-3) 9943 | -4/Zhirov | Learned location of Command (-1) 9950 | -4/Zhirov | Zhirov requested help retrieving the SGEMP Prototype 9969 | -4/Zhirov | Found Alien Artifact 9969 | -4/Zhirov | Identified Integrated Reactor 9969 | -4/Zhirov | Installed Integrated Reactor, increased core energy generation (+10) 9989 | -4/Zhirov | Found Alien Artifact 10184 | -4/Zhirov | Entered Proximity Caves 10300 | -3/Proximity Caves | Lost 14 parts (5n5u4w) 10486 | -3/Proximity Caves | Build established: Mutant 10983 | -3/Proximity Caves | Discovered exit to Research (range 16) 11069 | -3/Proximity Caves | Entered Research 11069 | -3/Research | Evolved 2 slots: Utility x2 11070 | -3/Research | Identified exit to Testing 11496 | -3/Research | Destroyed 9 combat bots 11498 | -3/Research | Lost 11 parts (1p3n3u4w) 11928 | -3/Research | Lost 3 parts (1p1u1w) 12122 | -3/Research | Lost 5 parts (1n2u2w) 12269 | -3/Research | Lost 4 parts (1p1n2w) 12292 | -3/Research | Entered Testing 12378 | -3/Testing | Spotted PG-G1MHTMZIAQ 12462 | -3/Testing | Found Prototype Processor 12522 | -3/Testing | Found Prototype Device 12522 | -3/Testing | Identified EM Dispersion Field 12526 | -3/Testing | Protovariant out of control (PG-G1MHTMZIAQ) 12526 | -3/Testing | Unleashed a protovariant (PG-G1MHTMZIAQ) 12564 | -3/Testing | Found Prototype Slashing Weapon 12564 | -3/Testing | Identified Molecular Scythe 12689 | -3/Testing | Spotted Striker 12723 | -3/Testing | Spotted Striker 12737 | -3/Testing | Destroyed Striker 12738 | -3/Testing | Core integrity fell below 50% 12754 | -3/Testing | Destroyed Striker 12778 | -3/Testing | Spotted Alpha 7 12779 | -3/Testing | System corruption reached 10% 12815 | -3/Testing | Destroyed Alpha 7 12821 | -3/Testing | Found Prototype Energy Gun 12821 | -3/Testing | Identified Enh. Gamma Rifle 12828 | -3/Testing | Found Prototype Device 12828 | -3/Testing | Identified Exp. ECM Suite 12860 | -3/Testing | Stole the SGEMP Prototype 12872 | -3/Testing | Found Prototype Processor 12872 | -3/Testing | Identified Exp. Targeting Computer 12943 | -3/Testing | Found Enh. Force Lance 13034 | -3/Testing | Spotted PL-LSA84GVXZY 13047 | -3/Testing | Destroyed PL-LSA84GVXZY 13334 | -3/Testing | Identified Transdimensional Reconstructor 13334 | -3/Testing | Warped through subspace 13335 | -3/Testing | Core integrity fell below 20% 13338 | -3/Testing | Destroyed 7 combat bots 13350 | -3/Testing | Lost 13 parts (3p3n2u5w) 13472 | -3/Testing | Found Prototype Hackware 13477 | -3/Testing | Identified Ghost Barrier 13533 | -3/Testing | Found Prototype Device 13533 | -3/Testing | Identified AEGIS Remote Shield 13576 | -3/Testing | Discovered new exit (range 13) 13590 | -3/Testing | Entered Research 13590 | -2/Research | Evolved 2 slots: Power x1, Utility x1 14030 | -2/Research | Spotted B-90 Cyclops 14184 | -2/Research | Identified exit to Quarantine 14486 | -2/Research | Build established: Scavenger-Mutant 14708 | -2/Research | Garrison activated, responded to threat 14831 | -2/Research | System corruption reached 10% 14902 | -2/Research | Lost 12 parts (2p4n3u3w) 15084 | -2/Research | Found Unknown Launcher 15084 | -2/Research | Identified Fusion Bomb Launcher 15090 | -2/Research | First assault squad dispatched 15180 | -2/Research | Garrison activated, responded to threat 15185 | -2/Research | Spotted B-90 Cyclops 15279 | -2/Research | Lost 3 parts (1n1u1w) 15373 | -2/Research | Core integrity fell below 50% 15417 | -2/Research | System corruption reached 30% 15449 | -2/Research | Lost 19 parts (2p6n7u4w) 15519 | -2/Research | Core integrity fell below 20% 15630 | -2/Research | Discovered new exit (range 13) 15631 | -2/Research | Spotted B-90 Cyclops 15634 | -2/Research | Entered Access 15634 | -1/Access | Evolved 2 slots: Utility x2 15635 | -1/Access | Loaded intel: 124 machine locations 15635 | -1/Access | Loaded intel: 89 trap records 15635 | -1/Access | Identified exit to Surface 15635 | -1/Access | Discovered exit to Surface (range 93) 15635 | -1/Access | Identified exit to Command 15635 | -1/Access | Discovered exit to Command (range 157) 15635 | -1/Access | Delivered the SGEMP Prototype to Zhirov 15635 | -1/Access | Zhirov transferred Access data 15804 | -1/Access | Garrison activated, responded to threat 15850 | -1/Access | Lost 6 parts (1p5n) 15860 | -1/Access | Zhirov warped through subspace 15884 | -1/Access | First assault squad dispatched 15899 | -1/Access | Core integrity fell below 50% 15909 | -1/Access | Core integrity fell below 20% 15921 | -1/Access | Destroyed by H-88 Terminator with KE Penetrator Last Messages --------------- 15894_ Slug penetrates Wall. 15898_ Penetrated by Slug. 15901_ Slug penetrates Wall. 15901_ Penetrated by Slug. 15902_ Connecting with Terminal... 15902_ ALERT: Suspicious activity at Terminal A003. Dispatching Investigation squad. 15904_ Penetrated by Slug. 15905_ Slug penetrates Wall. 15907_ CTNHQQHGYR/G3K,&>GPKFI6B&QH&& 15907_ Penetrated by Slug. 15908_ Slug penetrates Wall. 15910_ Penetrated by Slug. 15910_ Force Lance destroyed. 15910_ Slug penetrates Wall. 15911_ Penetrated by Slug. 15916_ Slug penetrates Wall. 15918_ Penetrated by Slug. 15920_ Slug penetrates Wall. 15921_ Penetrated by Slug. Map ----- +----------------------------------------------------+ | ^^ ## # ################## | | ^^ ## # ################## | | ^^ ## ""Y"" # # ######## | | ^^ ## """"" # # ######## | | ######## ## # # " + ! | | # # ## # # """ # | | # ## + ############ + """ # " | | # ## # ## # # " # """ | | # ## # ## # # # ! "" | | # ## # ## " # # # " | | # ## # ## """ + ########### | | # ## # ## """ # ########### ! | | # ## # ## " # ########### ! | | # ## # ## # #### ########## | | # ## # ## # #### | | # ######### ############ #### | | # ######### ############ #### ########## | | # ##### ######### # | | # ^ # # | | # #########+#############^ ^ ^ # == # | | # ##### ######### ^ + = == !# | | # ##### #########!!! ^ # == # | | # ##### ""G"" #########]! g # # | | # ##### " " #########]! h h # # | | # ##### " " ## Y # ""T"" # | | # ##### ## @ / # """"" # | | # ##### ## ############ ########### | | # ##### ## ############ ########### | | # ##########+##+## ############ ########### | | # ########## ## ############ ########### | | # ########## ## ############ ########### | | # ########## ## ###########T ########### | | # ########## ## ############""########### | | # ########## # ########### ########### | | # ### # # ###### #### ### | | # ### # # ###### #### ### | | # ### # # ###### #### ### | | # ### # ######## ######### ### | | # ### + ######## ######### ### | | # ### # ############## ######### ### | | # ########+# # ### ### ### ### | | # ######## # ##T ### > ### ### | | ##### # # ##"""""## """ " | | ##### # # ### ### """ " | | + ### ### """ " | | # ### ### ### ### | | # ""### ### #### ## | | + ""### ###""#### ## | | # " ""### ### T### ## | | + """ T### #### ## | +----------------------------------------------------+ Best States ------------- Heat Dissipation 115 Energy Generation 53 Energy Capacity 1230 Matter Stores 600 Matter Capacity 600 Sight Range 20 Terrain Scan Range 24 Terrain Scan Density 210 ECM Strength 5 Armor Coverage 825 Resistance: TH 15 Resistance: EM 30 Propulsion Shielding 66 Melee Speed Boost 20 Phase Shifting 10 Evasion (%) 63 Targeting Accuracy 28 Target Analysis 8 Core Analysis 10 Recoil Reduction 4 Defensive Hacking 20 Item Schematics ----------------- Imp. Terrain Scanner | -8/Materials | Scanalyzed Assault Drone Bay | -4/Zhirov | Free Exp. Heat Sink | -4/Zhirov | Free Exp. Optical Array | -4/Zhirov | Free Imp. Arc Thrower | -4/Zhirov | Free Robot Schematics ------------------ None Fabricated ------------ Nothing Alien Tech Used ----------------- Integrated Reactor Transdimensional Reconstructor Achievements -------------- Rampage Special Delivery Challenges ------------ None Game ------ Seed DataLobotomyModule Manual? 0 Play Time 02:36:27 Cumulative 292.6 hours Start 2021.07.14 @ 19:55:11 End 2021.07.15 @ 07:30:40 Sessions 3 Manual Loads 0 Difficulty Rogue Special Mode None Game No. 380 Rogue 376 Adventurer 0 Explorer 4 Win Type - Total 5 Types 4/0/0/1/0/0/0/0/0 Lore% 81 Gallery% 90 Achievement% 63 Wizard Run 0 Options --------- ASCII 1 Keyboard 1 Movement Numpad Keybinds 0 Fullscreen 2 Font 18/X11Bold Map View 76x50 Tactical HUD 1 Map Filters NONE Filters NONE Steam X RUN: 22016887-88f7-4c72-88c0-b5061e8ed0b7